[Event "Titled Tuesday Blitz April 11 Late 2023"]
[White "Novik, Maxim"]
[Black "Adewumi, Tanitoluwa"]
[WhiteFideId "4102924"]
[BlackFideId "30966396"]
[WhiteElo "2287"]
[BlackElo "2283"]
[Result "1-0"]
[Round "06"]
[TimeControl "180+2"]
[Date "2023.04.11"]
[WhiteClock "0:00:13"]
[BlackClock "0:00:02"]

1. c4 {[%clk 0:03:00]}  e5 {[%clk 0:02:55]} 2. Nc3 {[%clk 0:02:59]}  Nc6 {[%clk 0:02:51]} 3. g3 {[%clk 0:02:59]}  g6 {[%clk 0:02:49]} 4. Bg2 {[%clk 0:03:00]}  d6 {[%clk 0:02:48]} 5. Rb1 {[%clk 0:03:00]}  Be6 {[%clk 0:02:46]} 6. d3 {[%clk 0:03:00]}  Bg7 {[%clk 0:02:31]} 7. b4 {[%clk 0:03:00]}  Rb8 {[%clk 0:02:23]} 8. b5 {[%clk 0:03:00]}  Nce7 {[%clk 0:02:07]} 9. Nf3 {[%clk 0:02:57]}  h6 {[%clk 0:01:43]} 10. O-O {[%clk 0:02:51]}  Nf6 {[%clk 0:01:38]} 11. a4 {[%clk 0:02:44]}  O-O {[%clk 0:01:37]} 12. Nd2 {[%clk 0:02:38]}  d5 {[%clk 0:01:24]} 13. Ba3 {[%clk 0:02:36]}  Re8 {[%clk 0:01:12]} 14. Qc2 {[%clk 0:02:04]}  Nf5 {[%clk 0:00:53]} 15. e3 {[%clk 0:01:58]}  d4 {[%clk 0:00:51]} 16. Nd1 {[%clk 0:01:52]}  dxe3 {[%clk 0:00:47]} 17. fxe3 {[%clk 0:01:52]}  Ng4 {[%clk 0:00:44]} 18. Bc5 {[%clk 0:01:42]}  b6 {[%clk 0:00:43]} 19. h3 {[%clk 0:01:41]}  bxc5 {[%clk 0:00:24]} 20. hxg4 {[%clk 0:01:40]}  Nxg3 {[%clk 0:00:25]} 21. Rf3 {[%clk 0:01:23]}  Qh4 {[%clk 0:00:24]} 22. Nb3 {[%clk 0:01:03]}  Bxg4 {[%clk 0:00:20]} 23. Rf2 {[%clk 0:00:59]}  e4 {[%clk 0:00:20]} 24. Nxc5 {[%clk 0:00:54]}  exd3 {[%clk 0:00:18]} 25. Nxd3 {[%clk 0:00:54]}  Rbd8 {[%clk 0:00:18]} 26. Nf4 {[%clk 0:00:51]}  Bxd1 {[%clk 0:00:06]} 27. Rxd1 {[%clk 0:00:50]}  Rxd1+ {[%clk 0:00:06]} 28. Qxd1 {[%clk 0:00:50]}  Rxe3 {[%clk 0:00:07]} 29. Nd5 {[%clk 0:00:34]}  Re8 {[%clk 0:00:01]} 30. Nxc7 {[%clk 0:00:30]}  Rd8 {[%clk 0:00:02]} 31. Nd5 {[%clk 0:00:30]}  Bd4 {[%clk 0:00:02]} 32. Qf3 {[%clk 0:00:23]}  Nf5 {[%clk 0:00:03]} 33. Kf1 {[%clk 0:00:20]}  Bxf2 {[%clk 0:00:03]} 34. Qxf2 {[%clk 0:00:20]}  Qxc4+ {[%clk 0:00:03]} 35. Kg1 {[%clk 0:00:19]}  Rxd5 {[%clk 0:00:04]} 36. Bxd5 {[%clk 0:00:19]}  Qxd5 {[%clk 0:00:05]} 37. Qxa7 {[%clk 0:00:19]}  Qd1+ {[%clk 0:00:05]} 38. Kf2 {[%clk 0:00:19]}  Qd2+ {[%clk 0:00:05]} 39. Kf3 {[%clk 0:00:19]}  g5 {[%clk 0:00:06]} 40. Ke4 {[%clk 0:00:18]}  Nd6+ {[%clk 0:00:05]} 41. Ke5 {[%clk 0:00:17]}  Qf4+ {[%clk 0:00:04]} 42. Kd5 {[%clk 0:00:17]}  Nf5 {[%clk 0:00:04]} 43. b6 {[%clk 0:00:16]}  Qd6+ {[%clk 0:00:04]} 44. Kc4 {[%clk 0:00:16]}  Ne3+ {[%clk 0:00:04]} 45. Kb5 {[%clk 0:00:15]}  Qd3+ {[%clk 0:00:03]} 46. Ka5 {[%clk 0:00:15]}  Nc4+ {[%clk 0:00:03]} 47. Kb4 {[%clk 0:00:15]}  Nd6 {[%clk 0:00:02]} 48. Qc7 {[%clk 0:00:14]}  Qb1+ {[%clk 0:00:02]} 49. Ka5 {[%clk 0:00:13]} 1-0


[Site "https://www.chess.com"]

[Event "Titled Tuesday Blitz April 11 Late 2023"]
[White "Chos, Alexey"]
[Black "Poliakova, Varvara"]
[WhiteFideId "14117762"]
[BlackFideId "13518313"]
[WhiteElo "2234"]
[BlackElo "2075"]
[Result "1-0"]
[Round "06"]
[TimeControl "180+2"]
[Date "2023.04.11"]
[WhiteClock "0:00:11"]
[BlackClock "0:01:18"]

1. Nf3 {[%clk 0:02:59]}  f5 {[%clk 0:02:55]} 2. g3 {[%clk 0:02:57]}  d6 {[%clk 0:02:56]} 3. d4 {[%clk 0:02:56]}  Nf6 {[%clk 0:02:56]} 4. Bg2 {[%clk 0:02:56]}  g6 {[%clk 0:02:54]} 5. O-O {[%clk 0:02:56]}  Bg7 {[%clk 0:02:54]} 6. Nc3 {[%clk 0:02:56]}  O-O {[%clk 0:02:52]} 7. Re1 {[%clk 0:02:56]}  Ne4 {[%clk 0:02:47]} 8. Nxe4 {[%clk 0:02:50]}  fxe4 {[%clk 0:02:48]} 9. Nd2 {[%clk 0:02:51]}  d5 {[%clk 0:02:47]} 10. e3 {[%clk 0:02:51]}  c6 {[%clk 0:02:45]} 11. f3 {[%clk 0:02:46]}  exf3 {[%clk 0:02:42]} 12. Nxf3 {[%clk 0:02:46]}  Bg4 {[%clk 0:02:40]} 13. h3 {[%clk 0:02:45]}  Bf5 {[%clk 0:02:39]} 14. g4 {[%clk 0:02:37]}  Be4 {[%clk 0:02:39]} 15. Ng5 {[%clk 0:02:37]}  Bxg2 {[%clk 0:02:35]} 16. Kxg2 {[%clk 0:02:26]}  Qd6 {[%clk 0:02:33]} 17. e4 {[%clk 0:02:24]}  e5 {[%clk 0:02:31]} 18. dxe5 {[%clk 0:02:21]}  Bxe5 {[%clk 0:02:32]} 19. exd5 {[%clk 0:02:16]}  Nd7 {[%clk 0:02:31]} 20. Be3 {[%clk 0:02:06]}  cxd5 {[%clk 0:02:29]} 21. Nf3 {[%clk 0:02:05]}  Rae8 {[%clk 0:02:22]} 22. c4 {[%clk 0:01:58]}  d4 {[%clk 0:02:18]} 23. Bxd4 {[%clk 0:01:58]}  Qc6 {[%clk 0:02:12]} 24. Bxe5 {[%clk 0:01:30]}  Nxe5 {[%clk 0:02:13]} 25. Qd5+ {[%clk 0:01:26]}  Qxd5 {[%clk 0:02:08]} 26. cxd5 {[%clk 0:01:27]}  Rxf3 {[%clk 0:02:06]} 27. Rxe5 {[%clk 0:01:18]}  Rxe5 {[%clk 0:02:07]} 28. Kxf3 {[%clk 0:01:19]}  Rxd5 {[%clk 0:02:07]} 29. Rc1 {[%clk 0:01:17]}  Rd7 {[%clk 0:02:05]} 30. Ke4 {[%clk 0:01:17]}  Kf7 {[%clk 0:01:59]} 31. Ke5 {[%clk 0:01:14]}  Ke7 {[%clk 0:02:00]} 32. Rc8 {[%clk 0:01:13]}  Kf7 {[%clk 0:01:58]} 33. b4 {[%clk 0:01:06]}  h6 {[%clk 0:01:54]} 34. a4 {[%clk 0:01:04]}  Re7+ {[%clk 0:01:54]} 35. Kd6 {[%clk 0:00:51]}  Re6+ {[%clk 0:01:53]} 36. Kd5 {[%clk 0:00:51]}  Rb6 {[%clk 0:01:51]} 37. b5 {[%clk 0:00:50]}  Kf6 {[%clk 0:01:47]} 38. h4 {[%clk 0:00:41]}  a6 {[%clk 0:01:45]} 39. Kc5 {[%clk 0:00:34]}  Re6 {[%clk 0:01:44]} 40. b6 {[%clk 0:00:25]}  Re4 {[%clk 0:01:42]} 41. Rc7 {[%clk 0:00:22]}  Rxg4 {[%clk 0:01:39]} 42. Rxb7 {[%clk 0:00:22]}  Rxh4 {[%clk 0:01:39]} 43. Rb8 {[%clk 0:00:20]}  Rxa4 {[%clk 0:01:37]} 44. b7 {[%clk 0:00:20]}  Ra5+ {[%clk 0:01:36]} 45. Kd4 {[%clk 0:00:16]}  Ra4+ {[%clk 0:01:33]} 46. Ke3 {[%clk 0:00:14]}  Ra3+ {[%clk 0:01:32]} 47. Ke4 {[%clk 0:00:15]}  Ra4+ {[%clk 0:01:31]} 48. Kd3 {[%clk 0:00:14]}  Rb4 {[%clk 0:01:30]} 49. Rf8+ {[%clk 0:00:13]}  Kg5 {[%clk 0:01:27]} 50. b8=Q {[%clk 0:00:12]}  Rxb8 {[%clk 0:01:27]} 51. Rxb8 {[%clk 0:00:13]}  h5 {[%clk 0:01:23]} 52. Ke4 {[%clk 0:00:13]}  Kg4 {[%clk 0:01:22]} 53. Rb1 {[%clk 0:00:11]}  g5 {[%clk 0:01:20]} 54. Rg1+ {[%clk 0:00:11]}  Kh4 {[%clk 0:01:21]} 55. Kf5 {[%clk 0:00:10]}  g4 {[%clk 0:01:20]} 56. Kf4 {[%clk 0:00:10]}  Kh3 {[%clk 0:01:17]} 57. Rh1+ {[%clk 0:00:10]}  Kg2 {[%clk 0:01:18]} 58. Rxh5 {[%clk 0:00:11]} 1-0


[Site "https://www.chess.com"]

[Event "Titled Tuesday Blitz April 11 Late 2023"]
[White "Mamedov, Edgar"]
[Black "Vivas Zamora, Fabian Ernesto"]
[WhiteFideId "13739980"]
[BlackFideId "3902480"]
[WhiteElo "2330"]
[BlackElo "2262"]
[Result "0-1"]
[Round "06"]
[TimeControl "180+2"]
[Date "2023.04.11"]
[WhiteClock "0:00:35"]
[BlackClock "0:00:03"]

1. d4 {[%clk 0:03:00]}  Nf6 {[%clk 0:02:58]} 2. Nf3 {[%clk 0:03:00]}  g6 {[%clk 0:02:58]} 3. Nbd2 {[%clk 0:02:59]}  c5 {[%clk 0:02:46]} 4. dxc5 {[%clk 0:02:55]}  Na6 {[%clk 0:02:40]} 5. e4 {[%clk 0:02:51]}  Nxc5 {[%clk 0:02:39]} 6. e5 {[%clk 0:02:51]}  Nd5 {[%clk 0:02:23]} 7. Ne4 {[%clk 0:02:45]}  Qa5+ {[%clk 0:01:54]} 8. Bd2 {[%clk 0:02:41]}  Qc7 {[%clk 0:01:53]} 9. Nxc5 {[%clk 0:02:40]}  Qxc5 {[%clk 0:01:53]} 10. c4 {[%clk 0:02:37]}  Nc7 {[%clk 0:01:42]} 11. Be2 {[%clk 0:02:31]}  Ne6 {[%clk 0:01:42]} 12. O-O {[%clk 0:02:29]}  Bg7 {[%clk 0:01:42]} 13. Bc3 {[%clk 0:02:29]}  O-O {[%clk 0:01:41]} 14. Qd2 {[%clk 0:02:24]}  b6 {[%clk 0:01:40]} 15. Rfd1 {[%clk 0:02:20]}  Qc7 {[%clk 0:01:29]} 16. Bb4 {[%clk 0:02:15]}  Re8 {[%clk 0:01:26]} 17. Rac1 {[%clk 0:02:08]}  Bxe5 {[%clk 0:01:10]} 18. Nxe5 {[%clk 0:02:08]}  Qxe5 {[%clk 0:01:11]} 19. Bc3 {[%clk 0:02:08]}  Qg5 {[%clk 0:01:05]} 20. Qd5 {[%clk 0:01:59]}  Rb8 {[%clk 0:00:41]} 21. Bf3 {[%clk 0:01:46]}  Bb7 {[%clk 0:00:33]} 22. Qxg5 {[%clk 0:01:35]}  Nxg5 {[%clk 0:00:34]} 23. Bxb7 {[%clk 0:01:34]}  Rxb7 {[%clk 0:00:35]} 24. f3 {[%clk 0:01:30]}  d6 {[%clk 0:00:32]} 25. h4 {[%clk 0:01:28]}  Ne6 {[%clk 0:00:32]} 26. h5 {[%clk 0:01:24]}  Rc8 {[%clk 0:00:27]} 27. hxg6 {[%clk 0:01:23]}  hxg6 {[%clk 0:00:27]} 28. b3 {[%clk 0:01:21]}  b5 {[%clk 0:00:24]} 29. cxb5 {[%clk 0:01:20]}  Rxb5 {[%clk 0:00:24]} 30. Bb2 {[%clk 0:01:19]}  Rxc1 {[%clk 0:00:23]} 31. Rxc1 {[%clk 0:01:20]}  Rc5 {[%clk 0:00:24]} 32. Rxc5 {[%clk 0:01:19]}  Nxc5 {[%clk 0:00:22]} 33. Bd4 {[%clk 0:01:19]}  a6 {[%clk 0:00:18]} 34. Kf1 {[%clk 0:01:07]}  e5 {[%clk 0:00:14]} 35. Be3 {[%clk 0:00:55]}  f5 {[%clk 0:00:13]} 36. Ke2 {[%clk 0:00:55]}  Kf7 {[%clk 0:00:13]} 37. b4 {[%clk 0:00:53]}  Na4 {[%clk 0:00:13]} 38. Kd3 {[%clk 0:00:52]}  d5 {[%clk 0:00:12]} 39. Ba7 {[%clk 0:00:50]}  Ke6 {[%clk 0:00:12]} 40. Kc2 {[%clk 0:00:50]}  d4 {[%clk 0:00:09]} 41. f4 {[%clk 0:00:49]}  Nc3 {[%clk 0:00:08]} 42. fxe5 {[%clk 0:00:48]}  Kxe5 {[%clk 0:00:09]} 43. Kd3 {[%clk 0:00:48]}  Nxa2 {[%clk 0:00:06]} 44. Bxd4+ {[%clk 0:00:47]}  Kd5 {[%clk 0:00:07]} 45. Bc5 {[%clk 0:00:41]}  a5 {[%clk 0:00:07]} 46. Be7 {[%clk 0:00:40]}  Nxb4+ {[%clk 0:00:06]} 47. Ke3 {[%clk 0:00:39]}  Nc6 {[%clk 0:00:06]} 48. Ba3 {[%clk 0:00:38]}  g5 {[%clk 0:00:03]} 49. Kf3 {[%clk 0:00:37]}  Ne5+ {[%clk 0:00:03]} 50. Kf2 {[%clk 0:00:36]}  Nc4 {[%clk 0:00:04]} 51. Bc1 {[%clk 0:00:35]}  g4 {[%clk 0:00:03]} 0-1


[Site "https://www.chess.com"]

[Event "Titled Tuesday Blitz April 11 Late 2023"]
[White "Ismagilov, Damir"]
[Black "Kula, Robert"]
[WhiteFideId "34199982"]
[BlackFideId "1101218"]
[WhiteElo "2078"]
[BlackElo "2180"]
[Result "1/2-1/2"]
[Round "06"]
[TimeControl "180+2"]
[Date "2023.04.11"]
[WhiteClock "0:00:22"]
[BlackClock "0:00:15"]

1. d4 {[%clk 0:03:00]}  d5 {[%clk 0:03:00]} 2. Bf4 {[%clk 0:03:01]}  c6 {[%clk 0:03:00]} 3. e3 {[%clk 0:03:01]}  Bf5 {[%clk 0:03:00]} 4. c4 {[%clk 0:03:01]}  e6 {[%clk 0:03:00]} 5. Nc3 {[%clk 0:03:01]}  Nd7 {[%clk 0:03:00]} 6. Qb3 {[%clk 0:03:00]}  Qb6 {[%clk 0:03:00]} 7. c5 {[%clk 0:03:00]}  Qxb3 {[%clk 0:03:00]} 8. axb3 {[%clk 0:03:01]}  a6 {[%clk 0:03:00]} 9. b4 {[%clk 0:03:01]}  Rc8 {[%clk 0:02:56]} 10. Nf3 {[%clk 0:03:01]}  Ngf6 {[%clk 0:02:55]} 11. h3 {[%clk 0:03:01]}  h6 {[%clk 0:02:53]} 12. Nd2 {[%clk 0:03:02]}  Ne4 {[%clk 0:02:40]} 13. Nb3 {[%clk 0:02:53]}  f6 {[%clk 0:02:34]} 14. Be2 {[%clk 0:02:28]}  e5 {[%clk 0:02:32]} 15. Bh2 {[%clk 0:02:28]}  Be7 {[%clk 0:02:31]} 16. Bh5+ {[%clk 0:02:20]}  g6 {[%clk 0:02:30]} 17. Bf3 {[%clk 0:02:17]}  Nxc3 {[%clk 0:02:05]} 18. bxc3 {[%clk 0:02:18]}  Be4 {[%clk 0:01:57]} 19. Bxe4 {[%clk 0:02:00]}  dxe4 {[%clk 0:01:57]} 20. dxe5 {[%clk 0:01:55]}  fxe5 {[%clk 0:01:56]} 21. Nd2 {[%clk 0:01:54]}  Kf7 {[%clk 0:01:39]} 22. Nxe4 {[%clk 0:01:54]}  Ke6 {[%clk 0:01:40]} 23. Ke2 {[%clk 0:01:52]}  Nf6 {[%clk 0:01:28]} 24. Nxf6 {[%clk 0:01:52]}  Bxf6 {[%clk 0:01:27]} 25. Rhd1 {[%clk 0:01:52]}  Rhd8 {[%clk 0:01:26]} 26. e4 {[%clk 0:01:49]}  Bg5 {[%clk 0:01:24]} 27. f3 {[%clk 0:01:45]}  Rxd1 {[%clk 0:01:10]} 28. Rxd1 {[%clk 0:01:44]}  Rd8 {[%clk 0:01:11]} 29. Rd3 {[%clk 0:01:34]}  Rxd3 {[%clk 0:01:07]} 30. Kxd3 {[%clk 0:01:35]}  Bh4 {[%clk 0:01:03]} 31. Bg1 {[%clk 0:01:34]}  Be1 {[%clk 0:00:59]} 32. Be3 {[%clk 0:01:34]}  h5 {[%clk 0:00:57]} 33. Bd2 {[%clk 0:01:34]}  Bf2 {[%clk 0:00:55]} 34. Kc4 {[%clk 0:01:34]}  Bg3 {[%clk 0:00:50]} 35. Kb3 {[%clk 0:01:34]}  Bh4 {[%clk 0:00:50]} 36. Ka4 {[%clk 0:01:35]}  Bd8 {[%clk 0:00:50]} 37. c4 {[%clk 0:01:31]}  Be7 {[%clk 0:00:42]} 38. Be3 {[%clk 0:01:31]}  Bd8 {[%clk 0:00:42]} 39. b5 {[%clk 0:01:28]}  Bc7 {[%clk 0:00:41]} 40. Bd2 {[%clk 0:01:24]}  Bd8 {[%clk 0:00:40]} 41. bxa6 {[%clk 0:01:15]}  bxa6 {[%clk 0:00:39]} 42. Ba5 {[%clk 0:01:16]}  Bg5 {[%clk 0:00:39]} 43. Bb6 {[%clk 0:01:13]}  Bd2 {[%clk 0:00:38]} 44. Bc7 {[%clk 0:01:13]}  Be1 {[%clk 0:00:37]} 45. Bd6 {[%clk 0:01:13]}  Bd2 {[%clk 0:00:36]} 46. Bc7 {[%clk 0:01:10]}  Be1 {[%clk 0:00:35]} 47. Ba5 {[%clk 0:01:09]}  Bh4 {[%clk 0:00:35]} 48. Kb3 {[%clk 0:01:09]}  Bg5 {[%clk 0:00:33]} 49. Kc2 {[%clk 0:01:08]}  Be3 {[%clk 0:00:32]} 50. Bb4 {[%clk 0:01:07]}  Bg1 {[%clk 0:00:31]} 51. Kd3 {[%clk 0:01:05]}  Bf2 {[%clk 0:00:30]} 52. Ke2 {[%clk 0:01:03]}  Bg3 {[%clk 0:00:29]} 53. Ke3 {[%clk 0:01:02]}  Bf4+ {[%clk 0:00:24]} 54. Kf2 {[%clk 0:01:02]}  h4 {[%clk 0:00:24]} 55. Ke2 {[%clk 0:01:01]}  g5 {[%clk 0:00:23]} 56. Kd3 {[%clk 0:01:01]}  Kd7 {[%clk 0:00:23]} 57. Kc2 {[%clk 0:00:58]}  Kc7 {[%clk 0:00:22]} 58. Kb3 {[%clk 0:00:58]}  Kb7 {[%clk 0:00:22]} 59. Ba5 {[%clk 0:00:58]}  Be3 {[%clk 0:00:21]} 60. Bd8 {[%clk 0:00:58]}  Bf4 {[%clk 0:00:20]} 61. Bf6 {[%clk 0:00:58]}  Kc7 {[%clk 0:00:19]} 62. Ka4 {[%clk 0:00:58]}  Kb7 {[%clk 0:00:20]} 63. Bd8 {[%clk 0:00:52]}  Be3 {[%clk 0:00:19]} 64. Bb6 {[%clk 0:00:52]}  Bf4 {[%clk 0:00:19]} 65. Kb3 {[%clk 0:00:48]}  Be3 {[%clk 0:00:17]} 66. Kc3 {[%clk 0:00:48]}  Bf4 {[%clk 0:00:17]} 67. Kd3 {[%clk 0:00:49]}  Kc8 {[%clk 0:00:17]} 68. Ba5 {[%clk 0:00:49]}  Kb7 {[%clk 0:00:17]} 69. Be1 {[%clk 0:00:43]}  Kc8 {[%clk 0:00:17]} 70. Ke2 {[%clk 0:00:43]}  Kb7 {[%clk 0:00:17]} 71. Bd2 {[%clk 0:00:30]}  Kc7 {[%clk 0:00:13]} 72. Ba5+ {[%clk 0:00:17]}  Kb7 {[%clk 0:00:13]} 73. Bb6 {[%clk 0:00:18]}  Kc8 {[%clk 0:00:12]} 74. Kd3 {[%clk 0:00:17]}  Kb7 {[%clk 0:00:13]} 75. Kc2 {[%clk 0:00:17]}  Kc8 {[%clk 0:00:13]} 76. Kb3 {[%clk 0:00:17]}  Kb7 {[%clk 0:00:13]} 77. Bd8 {[%clk 0:00:17]}  Kc8 {[%clk 0:00:13]} 78. Bf6 {[%clk 0:00:18]}  Kb7 {[%clk 0:00:13]} 79. Kc2 {[%clk 0:00:18]}  Kc8 {[%clk 0:00:14]} 80. Kb2 {[%clk 0:00:19]}  Kb7 {[%clk 0:00:14]} 81. Ka3 {[%clk 0:00:19]}  Kc8 {[%clk 0:00:15]} 82. Ka4 {[%clk 0:00:20]}  Kb7 {[%clk 0:00:15]} 83. Ka5 {[%clk 0:00:21]}  Bd2+ {[%clk 0:00:15]} 84. Ka4 {[%clk 0:00:22]}  Bf4 {[%clk 0:00:15]} 1/2-1/2


[Site "https://www.chess.com"]

[Event "Titled Tuesday Blitz April 11 Late 2023"]
[White "Dilmukhametov, Artur"]
[Black "Haydon, David L"]
[WhiteFideId "24179922"]
[BlackFideId "415405"]
[WhiteElo "2199"]
[BlackElo "2326"]
[Result "1-0"]
[Round "06"]
[TimeControl "180+2"]
[Date "2023.04.11"]
[WhiteClock "0:00:23"]
[BlackClock "0:00:54"]

1. e4 {[%clk 0:03:00]}  Nf6 {[%clk 0:02:59]} 2. e5 {[%clk 0:03:00]}  Nd5 {[%clk 0:02:58]} 3. c4 {[%clk 0:03:00]}  Nb6 {[%clk 0:02:58]} 4. c5 {[%clk 0:03:01]}  Nd5 {[%clk 0:02:57]} 5. Bc4 {[%clk 0:03:02]}  e6 {[%clk 0:02:56]} 6. Nc3 {[%clk 0:03:02]}  Nxc3 {[%clk 0:02:55]} 7. dxc3 {[%clk 0:03:03]}  Bxc5 {[%clk 0:02:54]} 8. Qg4 {[%clk 0:03:04]}  Bf8 {[%clk 0:02:52]} 9. Bg5 {[%clk 0:02:49]}  Be7 {[%clk 0:02:51]} 10. Bxe7 {[%clk 0:02:48]}  Qxe7 {[%clk 0:02:52]} 11. Qxg7 {[%clk 0:02:49]}  Rf8 {[%clk 0:02:52]} 12. Nf3 {[%clk 0:02:44]}  h5 {[%clk 0:02:49]} 13. Ng5 {[%clk 0:02:41]}  d6 {[%clk 0:02:42]} 14. Nh7 {[%clk 0:02:39]}  Nd7 {[%clk 0:02:41]} 15. exd6 {[%clk 0:02:10]}  cxd6 {[%clk 0:02:37]} 16. O-O-O {[%clk 0:02:10]}  f5 {[%clk 0:02:28]} 17. Qxe7+ {[%clk 0:02:10]}  Kxe7 {[%clk 0:02:26]} 18. Nxf8 {[%clk 0:02:11]}  Nxf8 {[%clk 0:02:25]} 19. Rhe1 {[%clk 0:02:02]}  Bd7 {[%clk 0:02:24]} 20. Be2 {[%clk 0:02:00]}  h4 {[%clk 0:02:23]} 21. g3 {[%clk 0:01:58]}  Ng6 {[%clk 0:02:16]} 22. Bh5 {[%clk 0:01:55]}  Ne5 {[%clk 0:02:16]} 23. f4 {[%clk 0:01:51]}  Nc4 {[%clk 0:02:15]} 24. Rd4 {[%clk 0:01:51]}  Nb6 {[%clk 0:02:14]} 25. gxh4 {[%clk 0:01:49]}  Rh8 {[%clk 0:02:11]} 26. Bd1 {[%clk 0:01:48]}  Rxh4 {[%clk 0:02:11]} 27. Bc2 {[%clk 0:01:37]}  Rh5 {[%clk 0:02:05]} 28. Rd2 {[%clk 0:01:38]}  Rh4 {[%clk 0:01:54]} 29. Bxf5 {[%clk 0:01:33]}  Rxf4 {[%clk 0:01:54]} 30. Be4 {[%clk 0:01:33]}  Nc4 {[%clk 0:01:49]} 31. Rg2 {[%clk 0:01:31]}  Ne5 {[%clk 0:01:47]} 32. Bc2 {[%clk 0:01:16]}  Bc6 {[%clk 0:01:45]} 33. Rg7+ {[%clk 0:01:15]}  Kf6 {[%clk 0:01:44]} 34. Rg8 {[%clk 0:01:09]}  Kf7 {[%clk 0:01:43]} 35. Reg1 {[%clk 0:01:08]}  Rh4 {[%clk 0:01:38]} 36. R8g7+ {[%clk 0:01:02]}  Kf6 {[%clk 0:01:37]} 37. Rh7 {[%clk 0:01:02]}  Rf4 {[%clk 0:01:29]} 38. h4 {[%clk 0:01:02]}  Nf3 {[%clk 0:01:25]} 39. Rf1 {[%clk 0:01:01]}  e5 {[%clk 0:01:23]} 40. h5 {[%clk 0:00:55]}  Kg5 {[%clk 0:01:22]} 41. Rh1 {[%clk 0:00:52]}  e4 {[%clk 0:01:19]} 42. Rg7+ {[%clk 0:00:48]}  Kh6 {[%clk 0:01:17]} 43. Rg6+ {[%clk 0:00:48]}  Kh7 {[%clk 0:01:18]} 44. Rxd6 {[%clk 0:00:49]}  Ng5 {[%clk 0:01:14]} 45. h6 {[%clk 0:00:44]}  Nf7 {[%clk 0:01:14]} 46. Rd4 {[%clk 0:00:38]}  a6 {[%clk 0:01:05]} 47. a4 {[%clk 0:00:37]}  Rg4 {[%clk 0:01:03]} 48. b4 {[%clk 0:00:32]}  Ng5 {[%clk 0:01:02]} 49. b5 {[%clk 0:00:31]}  axb5 {[%clk 0:01:00]} 50. axb5 {[%clk 0:00:31]}  Bxb5 {[%clk 0:01:01]} 51. Rd5 {[%clk 0:00:31]}  Bc6 {[%clk 0:01:01]} 52. Re5 {[%clk 0:00:29]}  Nf7 {[%clk 0:00:58]} 53. Re7 {[%clk 0:00:26]}  Kg6 {[%clk 0:00:59]} 54. Rxf7 {[%clk 0:00:23]}  Kxf7 {[%clk 0:00:58]} 55. h7 {[%clk 0:00:24]}  Rh4 {[%clk 0:00:54]} 56. Rxh4 {[%clk 0:00:23]} 1-0


[Site "https://www.chess.com"]

[Event "Titled Tuesday Blitz April 11 Late 2023"]
[White "Mikhalsky, Vladimir"]
[Black "Sabuk, Piotr"]
[WhiteFideId "14144352"]
[BlackFideId "1137565"]
[WhiteElo "2236"]
[BlackElo "2298"]
[Result "0-1"]
[Round "06"]
[TimeControl "180+2"]
[Date "2023.04.11"]
[WhiteClock "0:00:05"]
[BlackClock "0:00:34"]

1. d4 {[%clk 0:03:00]}  d5 {[%clk 0:02:59]} 2. c4 {[%clk 0:03:00]}  e6 {[%clk 0:02:59]} 3. g3 {[%clk 0:03:01]}  Nf6 {[%clk 0:02:58]} 4. Bg2 {[%clk 0:03:01]}  Bb4+ {[%clk 0:02:53]} 5. Bd2 {[%clk 0:03:01]}  Bd6 {[%clk 0:02:53]} 6. c5 {[%clk 0:02:55]}  Be7 {[%clk 0:02:53]} 7. Nc3 {[%clk 0:02:51]}  O-O {[%clk 0:02:44]} 8. f4 {[%clk 0:02:50]}  a5 {[%clk 0:02:42]} 9. a3 {[%clk 0:02:50]}  Nc6 {[%clk 0:02:41]} 10. Nf3 {[%clk 0:02:46]}  b6 {[%clk 0:02:41]} 11. Ne5 {[%clk 0:02:09]}  Nxd4 {[%clk 0:02:36]} 12. c6 {[%clk 0:01:55]}  Ba6 {[%clk 0:02:33]} 13. a4 {[%clk 0:01:46]}  Qd6 {[%clk 0:02:28]} 14. e3 {[%clk 0:01:45]}  Nxc6 {[%clk 0:02:27]} 15. Nxc6 {[%clk 0:01:27]}  Qxc6 {[%clk 0:02:26]} 16. Ne2 {[%clk 0:01:26]}  Ne4 {[%clk 0:02:17]} 17. Nd4 {[%clk 0:01:21]}  Qd7 {[%clk 0:02:14]} 18. Bxe4 {[%clk 0:01:04]}  dxe4 {[%clk 0:02:14]} 19. Bc3 {[%clk 0:01:04]}  Rfd8 {[%clk 0:02:10]} 20. Qb3 {[%clk 0:00:54]}  c5 {[%clk 0:02:07]} 21. Nb5 {[%clk 0:00:53]}  Bxb5 {[%clk 0:02:06]} 22. Qxb5 {[%clk 0:00:52]}  Qxb5 {[%clk 0:02:06]} 23. axb5 {[%clk 0:00:52]}  Rd3 {[%clk 0:02:05]} 24. Ke2 {[%clk 0:00:51]}  Rad8 {[%clk 0:02:04]} 25. Ra4 {[%clk 0:00:47]}  f5 {[%clk 0:02:04]} 26. g4 {[%clk 0:00:46]}  Kf7 {[%clk 0:02:03]} 27. g5 {[%clk 0:00:33]}  h6 {[%clk 0:01:46]} 28. h4 {[%clk 0:00:32]}  Rh8 {[%clk 0:01:44]} 29. g6+ {[%clk 0:00:29]}  Kf8 {[%clk 0:01:29]} 30. Raa1 {[%clk 0:00:19]}  h5 {[%clk 0:01:24]} 31. Rad1 {[%clk 0:00:18]}  Rh6 {[%clk 0:01:20]} 32. Rhg1 {[%clk 0:00:10]}  c4 {[%clk 0:01:20]} 33. Bd4 {[%clk 0:00:09]}  Bd8 {[%clk 0:01:09]} 34. Rxd3 {[%clk 0:00:07]}  cxd3+ {[%clk 0:01:09]} 35. Kd2 {[%clk 0:00:07]}  Rh8 {[%clk 0:00:41]} 36. Rc1 {[%clk 0:00:06]}  Rh6 {[%clk 0:00:35]} 37. Rc8 {[%clk 0:00:05]}  Ke7 {[%clk 0:00:34]} 0-1


[Site "https://www.chess.com"]

[Event "Titled Tuesday Blitz April 11 Late 2023"]
[White "Thomas, Anysia"]
[Black "Sztokbant, Bernardo Vainzoff"]
[WhiteFideId "670472"]
[BlackFideId "2115956"]
[WhiteElo "2091"]
[BlackElo "2222"]
[Result "0-1"]
[Round "06"]
[TimeControl "180+2"]
[Date "2023.04.11"]
[WhiteClock "0:00:03"]
[BlackClock "0:00:25"]

1. d4 {[%clk 0:03:00]}  Nf6 {[%clk 0:02:56]} 2. c4 {[%clk 0:03:00]}  g6 {[%clk 0:02:56]} 3. Nc3 {[%clk 0:02:59]}  d5 {[%clk 0:02:57]} 4. cxd5 {[%clk 0:03:00]}  Nxd5 {[%clk 0:02:57]} 5. e4 {[%clk 0:03:00]}  Nxc3 {[%clk 0:02:58]} 6. bxc3 {[%clk 0:03:01]}  Bg7 {[%clk 0:02:58]} 7. Be3 {[%clk 0:03:01]}  O-O {[%clk 0:02:59]} 8. Nf3 {[%clk 0:03:02]}  c5 {[%clk 0:03:00]} 9. Be2 {[%clk 0:03:02]}  Nc6 {[%clk 0:02:59]} 10. O-O {[%clk 0:03:02]}  Bg4 {[%clk 0:02:59]} 11. d5 {[%clk 0:02:53]}  Na5 {[%clk 0:02:50]} 12. Bxc5 {[%clk 0:02:43]}  Bxc3 {[%clk 0:02:49]} 13. Rc1 {[%clk 0:02:38]}  Bg7 {[%clk 0:02:47]} 14. Bd4 {[%clk 0:02:38]}  Bxd4 {[%clk 0:02:26]} 15. Qxd4 {[%clk 0:02:37]}  e6 {[%clk 0:02:21]} 16. h3 {[%clk 0:02:26]}  Bxf3 {[%clk 0:02:21]} 17. Bxf3 {[%clk 0:02:26]}  exd5 {[%clk 0:02:18]} 18. exd5 {[%clk 0:02:27]}  Qd6 {[%clk 0:02:13]} 19. Rc5 {[%clk 0:02:01]}  b6 {[%clk 0:02:07]} 20. Rcc1 {[%clk 0:02:00]}  Rac8 {[%clk 0:02:06]} 21. Qg4 {[%clk 0:01:53]}  Rc5 {[%clk 0:01:56]} 22. Rxc5 {[%clk 0:01:49]}  Qxc5 {[%clk 0:01:55]} 23. Qf4 {[%clk 0:01:42]}  Rc8 {[%clk 0:01:47]} 24. Re1 {[%clk 0:01:36]}  Nc4 {[%clk 0:01:43]} 25. Qf6 {[%clk 0:01:07]}  Qd6 {[%clk 0:01:39]} 26. Qg5 {[%clk 0:00:57]}  Kg7 {[%clk 0:01:23]} 27. Qg4 {[%clk 0:00:55]}  Rc7 {[%clk 0:00:59]} 28. Qd4+ {[%clk 0:00:52]}  Qf6 {[%clk 0:00:56]} 29. Qd1 {[%clk 0:00:16]}  b5 {[%clk 0:00:50]} 30. Be2 {[%clk 0:00:15]}  Nd6 {[%clk 0:00:46]} 31. Bf3 {[%clk 0:00:14]}  b4 {[%clk 0:00:33]} 32. Qe2 {[%clk 0:00:14]}  a5 {[%clk 0:00:28]} 33. Qe3 {[%clk 0:00:12]}  Qc3 {[%clk 0:00:27]} 34. Kh1 {[%clk 0:00:06]}  Qxe3 {[%clk 0:00:25]} 35. fxe3 {[%clk 0:00:06]}  Kf6 {[%clk 0:00:25]} 36. e4 {[%clk 0:00:06]}  Ke5 {[%clk 0:00:25]} 37. Rd1 {[%clk 0:00:04]}  Rc2 {[%clk 0:00:25]} 38. Re1 {[%clk 0:00:03]}  Rxa2 {[%clk 0:00:25]} 0-1


[Site "https://www.chess.com"]